bitfinex/quotes_ETHUSD_20241130
["timestamp","ask_amount","ask_price","bid_price","bid_amount"]
[1732929661358,2.78667,3588.5,3588.2,1.1977255]
[1732929661649,2.78677,3588.4,3588.3,1.1977255]
[1732929661855,0.04627303,3588.4,3588.3,0.67697496]
[1732929662035,0.04627303,3588.4,3588.3,1.1977255]
[1732929662209,2.78675,3588.4,3588.3,1.1977255]
[1732929662531,2.83302303,3588.4,3588.3,1.1977255]
[1732929662942,2.83302303,3588.4,3588.3,0.67697496]
[1732929664331,3.39498833,3588.4,3588.3,0.67697496]
[1732929664530,4.96018833,3588.4,3588.3,0.26037498]
[1732929664727,2.78706,3588.0,3587.9,0.41658079]
[1732929664928,4.39852685,3588.0,3587.9,0.67695817]
[1732929665223,2.78774,3587.2,3587.0,0.43397534]
[1732929665463,2.78776,3587.1,3586.6,1.4569]
[1732929665636,2.83388075,3587.1,3586.9,0.43402701]
[1732929665837,2.83393075,3587.1,3587.0,0.52082708]
[1732929666038,2.83393075,3587.1,3587.0,0.78124034]
[1732929666249,2.83393075,3587.1,3587.0,1.19790156]
[1732929666522,2.78393075,3587.1,3587.0,1.19790156]
[1732929666723,2.78393075,3587.1,3587.0,0.67707448]
[1732929666921,2.82819819,3587.1,3587.0,0.67707448]
[1732929667968,2.82819819,3587.1,3587.0,1.19790156]
[1732929668321,2.82819819,3587.1,3587.0,0.67707448]
[1732929668680,2.83202744,3587.1,3587.0,0.52082708]
[1732929668858,2.83202744,3587.1,3586.3,1.4569]
[1732929668859,2.78831,3586.4,3586.3,1.4569]
[1732929669171,2.78831,3586.4,3585.4,0.2791]
[1732929669172,2.78848,3586.2,3585.4,3.06818]
[1732929669385,2.78866,3586.0,3585.9,0.43397502]
[1732929669669,2.78866,3586.0,3585.9,1.37137752]
[1732929669822,2.83274272,3586.0,3585.9,1.37137752]
[1732929670159,2.83274272,3586.0,3585.9,0.41663247]
[1732929670364,2.83274272,3586.0,3585.9,0.67701748]
[1732929671476,2.78885,3585.7,3585.6,0.41663247]
[1732929671621,2.78885,3585.7,3585.6,0.26005733]
[1732929671976,2.83257323,3585.7,3585.6,0.26005733]
[1732929672567,2.78932,3585.1,3585.0,0.41609295]
[1732929672752,2.78923,3585.3,3585.0,0.67591511]
[1732929672915,2.83287903,3585.2,3585.1,0.25982216]
[1732929673125,0.04363903,3585.2,3585.1,0.67591511]
[1732929673432,2.78924,3585.2,3585.1,0.25982216]
[1732929673766,2.83288197,3585.2,3585.1,0.25982216]
[1732929674952,4.93108117,3585.2,3585.1,0.25982216]
[1732929675151,2.14184117,3585.2,3584.1,1.97561065]
[1732929675325,2.14184117,3585.2,3584.2,0.67425457]
[1732929675326,2.78979,3584.5,3584.2,0.67425457]
[1732929675783,0.04300941,3584.4,3584.3,0.25932868]
[1732929676272,0.04301235,3584.4,3584.3,0.25932868]
[1732929676579,2.78971,3584.6,3584.3,0.25932868]
[1732929676728,0.04301235,3584.4,3584.1,0.41492589]
[1732929676932,2.78965,3584.7,3584.2,0.25888967]
[1732929677162,2.7894,3585.0,3584.3,0.25888967]
[1732929677330,4.32531,3585.2,3584.4,1.71578967]
[1732929677331,2.78948,3584.9,3584.4,1.71578967]
[1732929677665,0.04154673,3584.8,3584.5,0.25888967]
[1732929677837,0.04154673,3584.8,3584.6,0.25888967]
[1732929678168,0.04154673,3584.8,3584.7,0.25888967]
[1732929678405,2.78946,3585.0,3584.7,0.25888967]
[1732929678607,2.78946,3585.0,3584.8,0.25888967]
[1732929678773,1.536,3585.2,3584.5,0.41382647]
[1732929678959,1.536,3585.2,3584.6,0.25863616]
[1732929678960,2.78941,3585.0,3584.6,0.25863616]
[1732929679300,2.78941,3585.0,3584.7,0.25863616]
[1732929679467,1.536,3585.2,3584.8,0.25863616]
[1732929679672,2.78902,3585.5,3584.5,0.41381786]
[1732929679673,1.536,3585.5,3584.9,3.04795854]
[1732929679877,2.78894,3585.6,3585.0,3.04790854]
[1732929680087,2.78894,3585.6,3584.7,2.7896]
[1732929680088,0.04167744,3585.4,3585.1,0.25853184]
[1732929680394,0.04166995,3585.3,3585.2,0.25851455]
[1732929680591,2.83082995,3585.3,3585.2,0.25851455]
[1732929680802,2.83082995,3585.3,3584.3,2.78993]
[1732929680803,2.78968,3584.7,3584.1,2.79009]
[1732929681007,1.536,3585.2,3584.2,0.67224981]
[1732929681210,2.83135723,3584.6,3584.2,0.67224981]
[1732929681365,2.78979,3584.5,3584.3,0.25855762]
[1732929681694,1.536,3585.2,3584.4,0.25855762]
[1732929681865,2.78971,3584.6,3584.5,0.25855762]
[1732929682053,2.78937,3585.1,3584.1,1.4569]
[1732929682261,2.78979,3584.5,3584.2,0.25850907]
[1732929682457,2.78979,3584.5,3584.3,0.25850907]
[1732929682703,2.79009,3584.2,3583.7,1.4569]
[1732929682868,2.79009,3584.2,3583.4,3.22147697]
[1732929682869,2.79025,3583.9,3583.8,0.67205728]
[1732929683065,2.79016,3584.1,3583.8,0.25847625]
[1732929683298,2.79017,3584.1,3583.9,0.25847625]
[1732929683503,2.79017,3584.1,3584.0,0.25847625]
[1732929683661,0.04149958,3584.0,3583.5,0.41351181]
[1732929683862,2.79018,3584.0,3583.6,0.25844509]
[1732929684058,2.79034,3583.8,3583.7,0.25844509]
[1732929684273,2.79034,3583.8,3583.7,0.25837849]
[1732929684505,2.83174914,3583.8,3583.7,0.25837849]
[1732929684798,0.04140914,3583.8,3583.7,0.25837849]
[1732929684996,0.04140914,3583.8,3583.7,3.04878849]
[1732929685216,2.78963,3584.7,3583.7,3.0]
[1732929685499,2.7896,3584.8,3583.8,0.67171263]
[1732929685702,0.04144764,3584.6,3584.1,2.79005]
[1732929685913,0.04145808,3584.7,3584.2,0.67171263]
[1732929686206,0.04145327,3584.6,3584.4,2.78981]
[1732929686409,0.04145327,3584.6,3584.5,2.12861263]
[1732929686704,2.78934,3585.1,3584.5,4.91839263]
[1732929686888,1.6082,3585.4,3584.6,0.25835101]
[1732929687060,0.04155964,3585.0,3584.7,0.25835101]
[1732929687419,0.04155214,3584.9,3584.8,0.25835101]
[1732929687906,2.78938,3585.1,3584.8,0.25835101]
[1732929688203,4.39735,3585.4,3584.6,0.41336162]
[1732929688204,2.78932,3585.2,3584.9,0.25848917]
[1732929688362,2.78932,3585.2,3585.0,0.25848917]
[1732929688566,1.6082,3585.4,3585.1,0.25852459]
[1732929688771,2.78916,3585.3,3585.2,0.25852459]
[1732929690083,3.507797,3585.3,3585.2,0.25852459]
[1732929690888,3.54869908,3585.3,3585.2,0.25852459]
[1732929692017,2.78938,3585.1,3584.2,4.2469]
[1732929692302,2.78955,3584.9,3584.6,0.41427916]
[1732929692602,2.78955,3584.9,3584.4,0.43154079]
[1732929692603,2.82906097,3584.8,3584.7,1.1910549]
[1732929692802,2.82906097,3584.8,3584.7,0.67320595]
[1732929693309,2.82906097,3584.8,3584.7,1.1910549]
[1732929694292,2.82906097,3584.8,3584.7,1.62259569]
[1732929695405,0.03950097,3584.8,3584.2,1.4569]
[1732929695602,0.03950097,3584.8,3584.7,0.7797876]
[1732929695812,4.32832,3585.3,3584.7,0.5198584]
[1732929696108,0.03948217,3584.8,3584.2,1.4569]
[1732929696310,2.78947,3584.9,3584.3,1.19574454]
[1732929696311,2.78968,3584.7,3584.3,1.19574454]
[1732929696478,2.78947,3584.9,3584.4,0.67585561]
[1732929696667,2.78947,3584.9,3584.5,1.19574454]
[1732929697012,2.78963,3584.7,3584.6,1.19574454]
[1732929698406,2.82914041,3584.7,3584.6,1.19574454]
[1732929699087,0.03951041,3584.7,3584.6,1.19877398]
[1732929699470,2.78947,3585.0,3584.6,1.19877398]
[1732929699712,0.03951041,3584.7,3584.2,4.24686]
[1732929699872,2.78955,3584.8,3584.3,1.19964352]
[1732929700219,2.82915041,3584.7,3584.4,0.67805938]
[1732929700373,2.82915041,3584.7,3584.2,4.24686]
[1732929700374,2.82915041,3584.7,3584.5,0.67805938]
[1732929700572,2.82915041,3584.7,3584.2,4.24686]
[1732929700573,2.82915041,3584.7,3584.6,0.67805938]
[1732929700967,0.03951041,3584.7,3584.6,0.67805938]
[1732929701277,0.03951041,3584.7,3584.6,1.1998503]
[1732929701486,2.78957,3584.8,3584.6,1.1998503]
[1732929701703,2.78957,3584.8,3584.3,2.78993]
[1732929701704,0.03819045,3584.7,3584.3,2.78993]
[1732929702022,0.03819045,3584.7,3584.4,1.20052568]
[1732929702199,0.03819045,3584.7,3584.5,0.26098384]
[1732929702372,0.03819045,3584.7,3584.6,0.41757415]
[1732929702774,0.03819045,3584.7,3584.6,1.20052568]
[1732929703984,2.78953,3584.9,3584.6,1.20052568]
[1732929703985,1.5391,3585.3,3584.6,1.20052568]
[1732929704218,1.5391,3585.3,3584.2,1.4569]
[1732929704219,0.03822501,3585.2,3584.7,3.99013568]
[1732929704399,2.82747501,3585.2,3584.8,1.20052568]
[1732929704585,0.03822501,3585.2,3584.9,1.20052568]
[1732929704781,4.32834,3585.3,3585.0,1.20052568]
[1732929705009,4.32834,3585.3,3585.1,1.20052568]
[1732929705217,4.32834,3585.3,3585.2,1.20052568]
[1732929705439,2.78925,3585.2,3584.7,2.78961]
[1732929705616,4.32827,3585.3,3585.2,0.67859022]
[1732929705783,2.7891,3585.4,3585.2,0.78298872]
[1732929705991,2.7891,3585.4,3585.3,1.2005827]
[1732929706809,1.5599,3585.5,3585.3,1.2005827]
[1732929707127,2.78875,3585.9,3585.4,5.4465627]
[1732929707329,2.78875,3585.9,3585.5,1.2005827]
[1732929707625,2.78855,3586.1,3585.6,1.2005827]
[1732929707922,2.78847,3586.2,3585.7,1.2005827]
[1732929708102,2.78847,3586.2,3585.8,1.2005827]
[1732929708302,2.78847,3586.2,3585.9,1.2005827]
[1732929708493,2.78847,3586.2,3586.0,1.2005827]
[1732929708683,2.78847,3586.2,3586.1,1.2005827]
[1732929709308,2.78847,3586.2,3586.1,1.63497898]
[1732929709517,2.82680487,3586.2,3586.1,1.2005827]
[1732929710082,5.18791636,3586.2,3586.1,1.2005827]
[1732929710276,5.44659178,3586.2,3586.1,1.2005827]
[1732929710483,5.44659178,3586.2,3586.1,0.67859022]
[1732929711184,8.44659178,3586.2,3586.1,0.67859022]
[1732929711386,4.43593168,3586.2,3585.4,0.43440217]
[1732929711690,2.78916,3585.3,3585.2,0.43440217]
[1732929711879,2.78938,3585.1,3584.4,4.2467]
[1732929712087,2.78938,3585.1,3584.5,2.78977]
[1732929712285,0.03827445,3585.0,3584.5,2.78977]
[1732929712982,2.82767445,3585.0,3584.4,4.2467]
[1732929713176,2.78949,3584.9,3584.5,0.52142224]
[1732929713519,2.78949,3584.9,3584.4,4.2467]
[1732929713520,0.03827612,3584.8,3584.6,0.52142224]
[1732929713704,0.03827612,3584.8,3584.7,0.52142224]
[1732929714014,2.78929,3585.2,3584.7,0.52142224]
[1732929714217,2.78929,3585.2,3584.5,2.78978]
[1732929714218,2.78934,3585.1,3584.8,0.52142224]
[1732929714375,2.78942,3585.0,3584.9,0.52142224]
[1732929716718,2.82764382,3585.0,3584.9,0.52142224]
[1732929718422,0.03822382,3585.0,3584.9,0.52142224]
[1732929718608,2.78932,3585.1,3584.5,2.78978]
[1732929718921,0.03820801,3585.0,3584.6,0.52195509]
[1732929719122,2.82760801,3585.0,3584.6,0.52195509]
[1732929720144,2.82760801,3585.0,3584.4,1.4569]
[1732929720456,2.82760801,3585.0,3584.4,4.24676]
[1732929720831,2.82760801,3585.0,3584.1,0.54823195]
[1732929720832,2.78986,3584.4,3584.1,1.4569]
[1732929721054,2.78986,3584.4,3583.9,3.0]
[1732929721254,2.78986,3584.4,3583.8,1.4569]
[1732929721255,2.78983,3584.5,3583.8,4.24716]
[1732929721425,2.78983,3584.5,3583.9,2.79023]
[1732929721426,0.03815566,3584.3,3583.9,2.79023]
[1732929721741,0.03816316,3584.4,3583.8,1.4569]
[1732929721947,0.03814522,3584.2,3583.9,2.79024]
[1732929722151,2.78988,3584.4,3583.9,2.79024]
[1732929722152,0.03814391,3584.3,3583.9,2.79024]
[1732929722326,0.03812891,3584.1,3584.0,0.52195935]
[1732929722672,0.03812303,3584.1,3584.0,0.52195935]
[1732929723122,2.78988,3584.4,3584.0,0.52195935]
[1732929723325,0.03812009,3584.1,3584.0,0.52195935]
[1732929723548,1.636,3584.7,3584.0,1.72239505]
[1732929723549,2.79004,3584.2,3584.0,1.72239505]
[1732929723877,0.03812009,3584.1,3584.0,0.93950541]
[1732929724067,0.03812009,3584.1,3584.0,1.72227561]
[1732929724932,2.78995,3584.3,3584.0,1.72227561]
[1732929725135,0.03802585,3584.1,3584.0,0.52195935]
[1732929725324,2.78995,3584.3,3584.0,1.72225452]
[1732929725520,0.03802585,3584.1,3584.0,0.52195935]
[1732929725726,2.78995,3584.3,3584.0,1.7220754]
[1732929725928,0.03802291,3584.1,3584.0,0.52195935]
[1732929726144,2.78987,3584.4,3584.0,0.52195935]
[1732929726145,2.78987,3584.4,3584.0,1.72208357]
[1732929726319,0.03802291,3584.1,3584.0,0.52195935]
[1732929726521,2.78972,3584.6,3584.0,1.72188011]
[1732929726832,2.78972,3584.6,3584.3,0.43476416]
[1732929726833,2.78986,3584.4,3584.3,0.43476416]
[1732929727070,2.78986,3584.4,3584.3,1.63471722]
[1732929727253,2.82788256,3584.4,3584.3,1.19995306]
[1732929728041,2.82788256,3584.4,3584.3,1.19980608]
[1732929730446,0.03802256,3584.4,3584.3,1.19980608]
[1732929730645,0.03802256,3584.4,3584.3,5.44664608]
[1732929730949,2.78917,3585.3,3584.7,2.78963]
[1732929731290,2.78924,3585.2,3584.9,0.43441187]
[1732929731470,4.42075,3585.4,3584.8,2.78954]
[1732929731671,2.78917,3585.3,3585.0,0.26064512]
[1732929731843,2.78924,3585.2,3585.1,0.93832245]
[1732929732382,2.78924,3585.2,3585.1,1.19896486]
[1732929732743,4.84442318,3585.4,3585.1,1.19896486]
[1732929732942,2.78922,3585.3,3585.2,1.19896486]
[1732929733641,2.78885,3585.7,3585.2,1.19896486]
[1732929733886,2.78895,3585.6,3585.3,1.19896486]
[1732929734082,2.78901,3585.5,3585.4,1.19896486]
[1732929736397,0.03697624,3585.5,3585.4,1.19872053]
[1732929737105,2.78882,3585.8,3585.4,1.19872053]
[1732929737428,2.78891,3585.7,3585.5,0.78178108]
[1732929737635,2.78905,3585.5,3585.2,0.43433175]
[1732929737837,2.78905,3585.5,3585.3,1.19876018]
[1732929738000,2.78905,3585.5,3585.4,1.19876018]
[1732929738197,2.8260233,3585.5,3585.4,1.19873355]
[1732929738538,3.21736947,3585.5,3585.4,1.19873355]
[1732929738750,4.84896947,3585.5,3585.4,1.19873355]
[1732929739037,4.84896947,3585.5,3585.4,0.67754505]
[1732929739239,4.84896947,3585.5,3585.4,1.19873355]
[1732929739536,2.8260233,3585.5,3585.4,1.19873355]
[1732929741651,2.78965,3584.7,3584.3,1.4569]
[1732929741850,2.78952,3584.9,3584.3,1.4569]
[1732929742056,2.78952,3584.9,3584.4,0.41730376]
[1732929742358,2.78914,3585.4,3584.7,0.43468211]
[1732929742650,2.78914,3585.4,3584.5,1.1997568]
[1732929742651,2.78971,3584.6,3584.5,0.43468211]
[1732929742858,2.78971,3584.6,3584.5,1.19976793]
[1732929743061,4.40225,3584.8,3584.5,1.19976793]
[1732929743062,2.78955,3584.8,3584.5,1.19976793]
[1732929743223,2.78955,3584.8,3584.2,2.79001]
[1732929743224,2.78955,3584.8,3584.6,1.63445004]
[1732929743428,2.78955,3584.8,3584.7,1.19976793]
[1732929745414,2.82634291,3584.8,3584.7,1.19976793]
[1732929748137,2.82634291,3584.8,3584.3,2.78994]
[1732929748444,2.82634291,3584.8,3584.7,0.26080029]
[1732929748648,2.82634291,3584.8,3584.7,1.19968134]
[1732929754592,0.03679291,3584.8,3584.7,1.19968134]
[1732929754946,2.78955,3584.8,3584.7,1.19968134]
[1732929755264,2.82634291,3584.8,3584.7,1.19968134]
[1732929756651,2.78965,3584.7,3584.5,0.43487453]
[1732929756851,2.78965,3584.7,3584.6,1.20026532]
[1732929758687,2.78947,3584.9,3584.6,1.20026532]
[1732929758877,2.78947,3584.9,3584.5,0.43487874]
[1732929758878,2.78947,3584.9,3584.7,1.20026532]
[1732929759088,2.78947,3584.9,3584.8,0.93933808]
[1732929759274,2.78947,3584.9,3584.8,1.20026532]
[1732929760173,2.82624564,3584.9,3584.8,1.20026532]
[1732929761704,2.82624564,3584.9,3584.8,0.41748359]
[1732929761999,2.78963,3584.7,3584.6,0.43510731]
[1732929762195,2.78963,3584.7,3584.6,0.85282504]
[1732929762352,2.82639064,3584.7,3584.6,1.6360482]
[1732929762555,2.82639064,3584.7,3584.6,1.20094089]
[1732929763099,2.82639064,3584.7,3584.6,1.6360482]
[1732929763891,2.82639064,3584.7,3584.6,1.20094089]
[1732929764294,2.82639064,3584.7,3584.6,1.6360482]
[1732929764600,2.82639064,3584.7,3584.6,1.20094089]
[1732929764967,2.82639064,3584.7,3584.6,1.6360482]
[1732929765293,2.82639064,3584.7,3584.6,1.63627787]
[1732929765461,0.03676064,3584.7,3584.6,1.63627787]
[1732929766092,0.03676064,3584.7,3584.6,1.20109758]
[1732929766288,0.03676064,3584.7,3584.6,1.63627787]
[1732929766996,0.03676064,3584.7,3584.6,1.20109758]
[1732929768257,0.03676064,3584.7,3584.6,1.63655493]
[1732929768564,2.82639064,3584.7,3584.6,1.63655493]
[1732929768754,2.78963,3584.7,3584.6,1.20109758]
[1732929768955,2.82637301,3584.7,3584.6,1.63673636]
[1732929769187,2.82637301,3584.7,3584.6,1.20109758]
[1732929772087,0.03674301,3584.7,3584.6,1.20109758]
[1732929773506,0.2598317,3585.4,3584.8,2.7895]
[1732929773807,2.7908686,3585.5,3585.0,2.78934]
[1732929773808,0.0018386,3585.5,3585.0,2.78934]
[1732929773970,0.03672852,3585.3,3585.1,3.99041758]
[1732929774293,0.0018386,3585.5,3584.9,1.4569]
[1732929774294,0.0018386,3585.5,3585.2,1.20109758]
[1732929774594,2.7908486,3585.5,3585.4,0.4355467]
[1732929774823,2.7908486,3585.5,3585.4,1.63664428]
[1732929775106,2.7908486,3585.5,3585.0,2.78937]
[1732929775264,2.82758918,3585.5,3585.0,2.78937]
[1732929775459,2.82758918,3585.5,3585.4,1.20211919]
[1732929775659,2.82758918,3585.5,3585.4,1.63766962]
[1732929776295,2.82758918,3585.5,3585.4,1.20211919]
[1732929778471,2.82758918,3585.5,3585.4,0.78322968]
[1732929778668,2.82758918,3585.5,3585.4,0.52215312]
[1732929778870,2.82758918,3585.5,3585.4,1.20092983]
[1732929780224,0.03857918,3585.5,3585.4,1.20092983]
[1732929780631,4.6204391,3585.5,3585.4,0.67878642]
[1732929780803,10.45996505,3585.5,3585.4,0.2610717]
[1732929781009,9.91455712,3585.5,3584.7,0.52216251]
[1732929781301,2.79017,3584.1,3583.4,4.24751]
[1732929781507,2.78999,3584.3,3583.5,0.93992728]
[1732929781702,4.4129,3584.5,3583.5,0.93992728]
[1732929781703,4.4129,3584.5,3584.0,0.4351598]
[1732929781929,2.7898,3584.5,3584.0,1.8920598]
[1732929782142,1.6231,3584.9,3584.1,0.41771288]
[1732929782344,2.78994,3584.3,3584.2,0.85287268]
[1732929782520,2.78993,3584.4,3584.2,0.41771288]
[1732929782841,2.78971,3584.6,3584.3,1.37496283]
[1732929783001,2.78971,3584.6,3584.4,0.93980303]
[1732929783200,2.78971,3584.6,3584.5,0.93972101]
[1732929783437,3.509953,3584.6,3584.5,0.93972101]
[1732929783652,2.78971,3584.6,3584.5,0.93972101]
[1732929783841,2.78971,3584.6,3584.0,1.4569]
[1732929784054,1.6231,3585.2,3584.5,0.41763399]
[1732929784251,1.6231,3585.2,3584.0,1.4569]
[1732929784252,2.78962,3584.8,3584.6,0.52200552]
[1732929784453,2.78963,3584.7,3584.6,0.52200552]
[1732929784606,2.78963,3584.7,3584.6,0.93960994]
[1732929784803,4.41273,3584.7,3584.6,0.93960994]
[1732929785019,4.41273,3584.7,3584.6,0.93963826]
[1732929785215,5.132965,3584.7,3584.6,0.93963826]
[1732929785458,5.682965,3584.7,3584.6,0.93963826]
[1732929786459,5.71903233,3584.7,3584.6,0.93963826]
[1732929786659,3.37569733,3584.7,3584.6,0.93963826]
[1732929787499,3.37569733,3584.7,3584.0,4.247]
[1732929787684,3.37569733,3584.7,3584.6,0.93941408]
[1732929787891,3.37569733,3584.7,3584.6,0.52189671]
[1732929788057,5.21860901,3584.7,3584.6,0.93941408]
[1732929788257,5.83514074,3584.7,3584.6,0.41751737]
[1732929788469,2.79023,3584.0,3583.7,1.4569]
[1732929788696,2.79023,3584.0,3583.8,1.3742225]
[1732929788896,2.79008,3584.2,3583.9,0.93934253]
[1732929789094,0.55,3584.3,3584.0,0.93934253]
[1732929789278,0.55,3584.3,3584.1,0.93934253]
[1732929789477,0.55,3584.3,3584.2,0.93934253]
[1732929789478,3.33994,3584.3,3584.2,0.93934253]
[1732929789885,0.03596723,3584.3,3584.2,0.93934253]
[1732929790084,0.03596723,3584.3,3584.2,2.8311225]
[1732929790308,2.78943,3585.0,3584.4,2.78985]
[1732929790602,4.37316,3585.2,3584.5,0.95655805]
[1732929790603,4.37315,3585.2,3584.5,0.95655805]
[1732929790915,2.78942,3585.0,3584.7,0.43470109]
[1732929791081,2.78942,3585.0,3584.8,0.52185696]
[1732929791407,2.78909,3585.4,3584.9,1.97875696]
[1732929791575,2.78917,3585.3,3585.0,0.52185696]
[1732929791778,2.78917,3585.3,3585.1,0.93934253]
[1732929791989,2.78917,3585.3,3585.2,0.41748557]
[1732929792301,2.78917,3585.3,3585.2,0.93934253]
[1732929792513,0.0018386,3585.5,3585.2,0.93934253]
[1732929792695,0.0018386,3585.5,3585.3,1.37404362]
[1732929792869,0.0018386,3585.5,3585.4,0.93934253]
[1732929793071,0.0018386,3585.5,3585.4,1.20009045]
[1732929793471,0.03809138,3585.5,3585.4,2.65699045]
[1732929793721,0.0018386,3585.5,3585.4,5.44607045]
[1732929794070,2.78818,3586.6,3586.0,1.4569]
[1732929794270,4.37195,3586.8,3586.0,1.4569]
[1732929794271,4.37195,3586.8,3586.2,0.43433394]
[1732929794470,2.78816,3586.6,3586.3,0.93934253]
[1732929794707,2.78812,3586.7,3586.4,1.20009045]
[1732929794876,2.78812,3586.7,3586.5,1.20009045]
[1732929795215,2.78815,3586.6,3586.2,0.43433394]
[1732929795372,2.78815,3586.6,3586.3,0.67664254]
[1732929795572,2.78823,3586.5,3586.4,1.19713739]
[1732929796503,2.78823,3586.5,3586.4,0.67664254]
[1732929796804,2.78817,3586.6,3586.4,0.67664254]
[1732929797109,2.78817,3586.6,3586.5,0.67664254]
[1732929797281,0.55,3586.7,3586.5,0.67664254]
[1732929797487,3.33813,3586.7,3586.6,0.67601938]
[1732929797811,0.55,3586.7,3586.6,0.67601938]
[1732929798024,0.55,3586.8,3586.6,0.67601938]
[1732929798315,3.33802,3586.8,3586.7,0.67601938]
[1732929798621,4.109004,3586.8,3586.7,0.67601938]
[1732929799117,3.559004,3586.8,3586.7,0.67601938]
[1732929799320,2.78802,3586.8,3586.7,0.67601938]
[1732929799809,2.78784,3587.0,3586.7,0.67601938]
[1732929799810,0.55,3587.0,3586.7,0.67601938]
[1732929800113,3.33792,3586.9,3586.8,0.67601938]
[1732929800331,0.55,3586.9,3586.8,0.67601938]
[1732929800488,0.55,3587.0,3586.8,0.67601938]
[1732929800672,0.55,3587.0,3586.5,0.51942442]
[1732929800673,0.03385503,3586.9,3586.5,0.51942442]
[1732929800876,0.03385503,3586.9,3586.6,2.13215191]
[1732929801186,0.03385503,3586.9,3586.7,0.259712]
[1732929801387,0.03385503,3586.9,3586.8,0.6752512]
[1732929801588,2.7877,3587.2,3586.8,0.6752512]
[1732929801589,2.78769,3587.2,3586.8,0.6752512]
[1732929801920,2.78789,3587.0,3586.9,0.6749605]
[1732929802284,0.47130441,3587.1,3586.9,0.6749605]
[1732929802285,3.25907441,3587.1,3586.9,0.6749605]
[1732929802486,3.25907441,3587.1,3587.0,0.6749605]
[1732929803323,3.25907441,3587.1,3587.0,0.25960019]
[1732929803479,3.25907441,3587.1,3587.0,0.6749605]
[1732929804177,3.25907441,3587.1,3587.0,0.25960019]
[1732929804883,3.25907441,3587.1,3587.0,0.6749605]
[1732929805182,3.25907441,3587.1,3587.0,0.25960019]
[1732929806181,2.82191541,3587.1,3587.0,0.25960019]
[1732929807320,2.82191541,3587.1,3586.6,1.976324]
[1732929807321,2.82191541,3587.1,3586.6,1.4569]
[1732929807520,2.82191541,3587.1,3586.8,0.41469139]
[1732929808020,2.82191541,3587.1,3586.6,0.51836423]
[1732929808021,2.78784,3587.0,3586.9,0.25916509]
[1732929808314,2.82198729,3587.0,3586.9,0.25916509]
[1732929810073,3.93295602,3587.0,3586.9,0.25916509]
[1732929810178,5.44285602,3587.0,3586.9,0.25916509]
[1732929810382,2.65501602,3587.0,3586.3,0.41469139]
[1732929810578,2.78805,3586.8,3586.4,0.67372716]
[1732929810817,2.78805,3586.8,3586.2,2.78844]
[1732929810818,2.78809,3586.7,3586.5,0.67372716]
[1732929811120,0.03417508,3586.7,3586.6,0.67372716]
[1732929811298,0.03417508,3586.7,3586.6,0.25912583]
[1732929811500,2.78807,3586.7,3586.6,0.25912583]
[1732929811813,2.82220931,3586.7,3586.6,0.25912583]
[1732929811981,0.03413931,3586.7,3586.6,0.25912583]
[1732929812383,2.78783,3587.1,3586.6,0.67372716]
[1732929812583,5.7873,3587.7,3586.6,0.67372716]
[1732929812584,0.03413931,3586.7,3586.6,3.30638505]
[1732929812825,2.78753,3587.4,3586.8,2.78799]
[1732929813028,2.78753,3587.4,3586.9,2.13076893]
[1732929813185,0.03417035,3587.3,3587.0,0.67386893]
[1732929813389,0.03417035,3587.3,3587.1,0.67386893]
[1732929813585,0.03417035,3587.3,3587.2,0.67386893]
[1732929813783,2.78753,3587.4,3587.2,0.67386893]
[1732929814126,2.78753,3587.4,3587.3,0.67386893]
[1732929814281,2.78739,3587.6,3587.3,0.67386893]
[1732929814622,2.78739,3587.6,3587.4,0.67386893]
[1732929814826,2.78739,3587.6,3587.5,0.67386893]
[1732929815528,3.15419274,3587.6,3587.5,0.67386893]
[1732929818389,4.66409274,3587.6,3587.5,0.67386893]
[1732929818613,4.66409274,3587.6,3587.5,1.1928214]
[1732929818815,2.82154403,3587.6,3587.5,1.1928214]
[1732929819339,2.82154403,3587.6,3587.5,1.62469778]
[1732929819635,0.03415403,3587.6,3587.5,1.1928214]
[1732929819786,2.82152403,3587.6,3587.5,1.1928214]
[1732929819993,2.78737,3587.6,3587.5,1.1928214]
[1732929820324,2.82167965,3587.6,3587.5,1.1928214]
[1732929820533,2.78756,3587.4,3586.8,2.78798]
[1732929820715,2.78763,3587.3,3586.9,1.4569]
[1732929821037,2.78778,3587.1,3587.0,0.93647288]
[1732929821186,4.38738,3587.1,3587.0,1.19660416]
[1732929821393,2.8220661,3587.1,3587.0,1.19660416]
[1732929821624,0.0342861,3587.1,3587.0,1.19660416]
[1732929821826,0.0342861,3587.1,3587.0,3.98444416]
[1732929822131,2.78723,3587.8,3587.2,2.78767]
[1732929822301,2.78694,3588.2,3587.7,0.43421167]
[1732929822504,7.1732,3588.4,3587.9,0.43418192]
[1732929822722,2.78697,3588.2,3588.0,1.63078608]
[1732929823030,2.78691,3588.2,3588.1,1.63170939]
[1732929823390,0.03434282,3588.2,3588.1,1.63170939]
[1732929823626,0.03434282,3588.2,3588.1,0.67728856]
[1732929823828,3.04464699,3588.6,3588.1,1.61535695]
[1732929823829,2.78679,3588.4,3588.1,1.61535695]
[1732929824028,5.40163153,3588.2,3588.1,0.52111478]
[1732929824191,2.78768,3587.3,3586.7,1.4569]
[1732929824731,2.78768,3587.3,3586.8,0.26058249]
[1732929824732,0.03426374,3587.2,3586.8,0.26058249]
[1732929825053,2.82197374,3587.2,3586.9,0.9380963]
[1732929825270,2.82197374,3587.2,3586.7,1.4569]
[1732929825271,0.0343208,3587.1,3587.0,1.19867879]
[1732929825967,2.78756,3587.4,3587.0,1.19867879]
[1732929826176,2.78756,3587.4,3586.8,2.78799]
[1732929826177,2.78768,3587.2,3587.1,1.19867879]
[1732929826557,2.82200829,3587.2,3587.1,1.19867879]
[1732929828346,0.03432829,3587.2,3587.1,1.14167879]
[1732929828548,2.78756,3587.4,3587.1,1.14167879]
[1732929828751,2.78768,3587.2,3586.7,1.4569]
[1732929828951,2.78768,3587.2,3586.8,0.6778812]
[1732929829150,0.03417331,3587.1,3586.9,0.6778812]
[1732929829356,0.03417331,3587.1,3586.7,1.4569]
[1732929829357,0.03417331,3587.1,3587.0,0.6778812]
[1732929829993,1.5263,3588.0,3587.0,4.9226212]
[1732929830137,2.78768,3587.2,3587.1,0.26072354]
[1732929830497,2.78755,3587.4,3587.1,0.26072354]
[1732929830498,2.78755,3587.4,3587.1,0.67786187]
[1732929830637,2.82072391,3587.2,3587.1,0.41714577]
[1732929830978,2.82072391,3587.2,3587.1,0.67794675]
[1732929831161,0.03304391,3587.2,3587.1,0.67794675]
[1732929831471,0.03304391,3587.2,3587.1,3.46570675]